fUST/lending_fUST_20240213
["ID","MTS","AMOUNT","RATE_DAILY","PERIOD"]
[313924809,1707828439294,-154.86062544,0.00020466,2]
[313924810,1707828439314,-16473.573192,0.00020467,2]
[313924811,1707828439336,-5517.62662572,0.00020562,2]
[313924812,1707828470134,-6039.22157276,0.00018965,2]
[313924813,1707828470154,-279.22688053,0.00018966,2]
[313924814,1707828470174,-500.0,0.00019001,2]
[313924815,1707828470201,-626.55154671,0.00019002,2]
[313924816,1707828542434,-296.0451629,0.00019001,2]
[313924817,1707828542456,-12997.45275592,0.00019001,2]
[313924818,1707828542477,-64.03848638,0.00019002,2]
[313924819,1707828542500,-191.47322048,0.00019002,2]
[313924820,1707828542520,-299.99037432,0.00019002,2]
[313924821,1707828547102,-102.51880244,0.00019002,2]
[313924822,1707828547122,-152.33422684,0.00020426,2]
[313924823,1707828547143,-15837.03166877,0.00020562,2]
[313924824,1707828547165,-1833.23081088,0.00021,2]
[313924825,1707828547185,-169.30228,0.00021318,2]
[313924826,1707828547207,-280.0,0.0002191,7]
[313924827,1707828547228,-294.40214372,0.00022,4]
[313924828,1707828547249,-197.54412701,0.00023373,2]
[313924829,1707828547277,-27283.85443762,0.00023473,2]
[313924830,1707828547299,-954.93490532,0.00023473,2]
[313924831,1707828547321,-16172.94586598,0.00023999,2]
[313924832,1707828547345,-200.0,0.00023999,2]
[313924833,1707828547366,-155.3915196,0.00023999,2]
[313924834,1707828547387,-391.0,0.00024101,7]
[313924835,1707828547406,-766.53439085,0.00025,2]
[313924836,1707828547427,-197.54412698,0.00025505,2]
[313924837,1707828547447,-200.0,0.00026511,15]
[313924838,1707828547468,-348.0,0.00026511,15]
[313924839,1707828547489,-685.46616516,0.00027,2]
[313924840,1707828547510,-197.54412698,0.00027637,2]
[313924841,1707828547530,-199.94018666,0.00028695,2]
[313924842,1707828547550,-280.94108593,0.00028695,2]
[313924843,1707828547569,-571.7966515,0.00028696,2]
[313924844,1707828547589,-246.24419745,0.00028696,2]
[313924845,1707828547609,-49645.18091121,0.00028797,2]
[313924846,1707828567122,-330.86032515,0.00019001,2]
[313924847,1707828567142,-154.86062544,0.00019002,2]
[313924848,1707828567164,-1963.02059646,0.00028796,2]
[313924849,1707828567184,-27740.66276251,0.00028797,2]
[313924850,1707828567205,-981.02470086,0.00028798,2]
[313924851,1707828567226,-1115.58268575,0.00028798,2]
[313924852,1707828567246,-155.41599408,0.00028798,2]
[313924853,1707828567267,-481.99435085,0.00029161,2]
[313924854,1707828567288,-2608.46910477,0.00029162,2]
[313924855,1707828567308,-200.0,0.00029163,15]
[313924856,1707828567329,-113.29472249,0.00029163,15]
[313924906,1707828632548,-1435.25522947,0.00019001,2]
[313924907,1707828632558,-253.22457117,0.00019002,2]
[313924908,1707828632568,-155.82869241,0.00019002,2]
[313924909,1707828632577,-293.96652096,0.00022,4]
[313924910,1707828632587,-155.96772157,0.00023999,2]
[313924911,1707828632595,-500.0,0.00029161,2]
[313924912,1707828632605,-273.45700158,0.00029162,2]
[313924913,1707828632614,-766.53439085,0.00029163,2]
[313924914,1707828632623,-154.86062544,0.00029163,2]
[313924915,1707828632634,-367.295038,0.00029346,2]
[313924916,1707828632643,-5282.95746006,0.00029899,2]
[313924917,1707828632651,-1042.910564,0.000299,2]
[313924918,1707828632661,-268.6336481,0.00030807,4]
[313924919,1707828632670,-377.464031,0.00030807,4]
[313924920,1707828632680,-7012.30994542,0.00030808,2]
[313924921,1707828632690,-639.29851984,0.00030859,2]
[313924922,1707828632700,-464.73280975,0.000312,2]
[313924923,1707828632709,-150.8642222,0.0003121,2]
[313924924,1707828632718,-200.0,0.00031393,15]
[313924925,1707828632728,-2758.67,0.00031889,3]
[313924926,1707828632737,-232.69496445,0.00031898,2]
[313924927,1707828632746,-9390.86117124,0.00031899,14]
[313924962,1707828638330,-2497.2,0.00028914,2]
[313924963,1707828638387,-10003.91013348,0.00028914,2]
[313924964,1707828638399,-12398.88986652,0.00028914,2]
[313924965,1707828638408,-300.0,0.00029163,2]
[313924966,1707828638417,-4307.21,0.00031889,3]
[313924967,1707828638426,-91163.97724726,0.00031899,14]
[313924968,1707828638435,-56897.32565828,0.000319,7]
[313924969,1707828638444,-2733.35859069,0.00031998,4]
[313924970,1707828638453,-155.90181095,0.00031998,4]
[313924971,1707828638463,-155.46662767,0.00031998,4]
[313924972,1707828638472,-3550.52932006,0.00031998,4]
[313924973,1707828638481,-155.46073014,0.00031998,4]
[313924974,1707828638490,-323.84552651,0.00031998,4]
[313924975,1707828638499,-537.66917544,0.00031998,4]
[313924976,1707828638508,-261.96036367,0.00031998,4]
[313924977,1707828638517,-74238.21645269,0.00031998,4]
[313924978,1707828638526,-155.73915057,0.00031998,4]
[313924979,1707828638536,-652.1152959,0.00031998,4]
[313924980,1707828638544,-6319.46654437,0.00031998,4]
[313924981,1707828638553,-155.43519302,0.00031998,4]
[313924982,1707828638563,-511.13885335,0.00031998,4]
[313924983,1707828638576,-155.96037561,0.00031998,4]
[313924984,1707828638586,-285.49564536,0.00031998,4]
[313924985,1707828638595,-156.21878147,0.00031998,4]
[313924986,1707828638604,-302.46148739,0.00031998,4]
[313924987,1707828638613,-181.55715526,0.00031998,4]
[313924988,1707828638622,-717.51599592,0.00031998,4]
[313924989,1707828638632,-224.33722738,0.00031998,4]
[313924990,1707828638641,-324.17513104,0.00031998,4]
[313924991,1707828638650,-1202.19924875,0.00031998,4]
[313924992,1707828638659,-6113.4447999,0.00031998,4]
[313924993,1707828638667,-681.13601109,0.00031998,4]
[313924994,1707828638677,-590.26002597,0.00031998,4]
[313924995,1707828638689,-155.49299612,0.00031998,4]
[313924996,1707828638698,-634.58046785,0.00031998,4]
[313924997,1707828638707,-296.0451629,0.00031998,4]
[313924998,1707828638716,-1858.73816321,0.00031998,4]
[313924999,1707828638725,-330.86032515,0.00031998,4]
[313925000,1707828638734,-353.29373934,0.00031998,4]
[313925001,1707828638744,-189841.90730072,0.00032,15]
[313925002,1707828638753,-627.82035137,0.00032,4]
[313925003,1707828638762,-5000.0,0.00032277,7]
[313925004,1707828638771,-200.1465056,0.00032354,2]
[313925005,1707828638780,-200.1465056,0.00032354,2]
[313925006,1707828638789,-198.2827838,0.00032354,2]
[313925007,1707828638798,-232.69496441,0.00032449,2]
[313925008,1707828638808,-1276.2070171,0.00032458,2]
[313925009,1707828638819,-300.0,0.00032687,2]
[313925010,1707828638828,-250.0,0.00032876,5]
[313925011,1707828638837,-11378.36588454,0.00032977,2]
[313925012,1707828638846,-232.69496441,0.00032999,2]
[313925013,1707828638855,-691.55410343,0.00033,3]
[313925014,1707828638864,-242.26183416,0.00033,30]
[313925015,1707828638873,-154.86062544,0.00033,4]
[313925016,1707828638882,-153.0,0.00033,2]
[313925017,1707828638891,-166.0,0.00033,2]
[313925018,1707828638900,-196.0,0.00033,2]
[313925019,1707828638909,-3298.0,0.00033,2]
[313925020,1707828638918,-154.0,0.00033,2]
[313925021,1707828638927,-3298.0,0.00033151,2]
[313925022,1707828638936,-167722.0544,0.0003331,7]
[313925023,1707828638945,-300.0,0.00033375,2]
[313925024,1707828638954,-500.0,0.00033424,5]
[313925025,1707828638963,-3298.0,0.00033425,2]
[313925026,1707828638972,-232.69496441,0.0003355,2]
[313925027,1707828638981,-3298.0,0.00033699,2]
[313925028,1707828638990,-153.0,0.00033705,2]
[313925029,1707828638999,-153.0,0.00033705,2]
[313925030,1707828639008,-153.0,0.00033956,2]
[313925031,1707828639018,-750.0,0.00033972,5]
[313925032,1707828639027,-3298.0,0.00033973,2]
[313925033,1707828639036,-51832.56696175,0.00034,2]
[313925034,1707828639045,-300.0,0.00034063,2]
[313925035,1707828639054,-232.69496441,0.00034101,2]
[313925036,1707828639064,-3298.0,0.00034247,2]
[313925037,1707828639074,-407.4416141,0.00034274,2]
[313925038,1707828639083,-153.0,0.00034274,2]
[313925039,1707828639092,-154.0555174,0.00034274,2]
[313925040,1707828639101,-153.7868715,0.00034274,2]
[313925041,1707828639110,-153.0,0.00034274,2]
[313925042,1707828639120,-200.1465056,0.00034274,2]
[313925043,1707828639129,-200.1465056,0.00034274,2]
[313925044,1707828639137,-153.0,0.00034274,2]
[313925045,1707828639146,-200.1465056,0.00034274,2]
[313925046,1707828639155,-199.7297436,0.00034274,2]
[313925047,1707828639165,-153.0,0.00034274,2]
[313925048,1707828639174,-153.0,0.00034274,2]
[313925049,1707828639183,-153.0,0.00034274,2]
[313925050,1707828639192,-1000.0,0.0003452,5]
[313925051,1707828639201,-166.0,0.00034521,2]
[313925052,1707828639210,-3298.0,0.00034521,2]
[313925053,1707828639219,-280.0,0.00034532,15]
[313925054,1707828639228,-232.69496441,0.00034651,2]
[313925055,1707828639237,-150.8642222,0.00034678,2]
[313925056,1707828639246,-250.26564092,0.00034678,2]
[313925057,1707828639255,-1258.12365138,0.00034728,12]
[313925058,1707828639264,-300.0,0.00034751,2]
[313925059,1707828639273,-1042.910564,0.000349,2]
[313925060,1707828639282,-486.99430572,0.00034999,15]
[313925061,1707828639291,-437.74835772,0.00034999,15]
[313925062,1707828639300,-221.90054272,0.00034999,15]
[313925063,1707828639310,-1533.16044773,0.00035,4]
[313925064,1707828639322,-154.87609912,0.00035,6]
[313925065,1707828639331,-847.02589561,0.00035,2]
[313925066,1707828639340,-7659.04269963,0.00035,2]
[313925067,1707828639349,-2050.39168918,0.00035,4]
[313925068,1707828639358,-212.18771165,0.00035,4]
[313925069,1707828639367,-2363.36602346,0.00035,2]
[313925070,1707828639376,-2000.0,0.00035,3]
[313925071,1707828639386,-7577.10554735,0.00035,10]
[313925072,1707828639395,-1250.0,0.00035068,5]
[313925073,1707828639404,-173.2068265,0.00035096,2]
[313925074,1707828639414,-153.0,0.00035096,2]
[313925075,1707828639423,-232.69496441,0.00035202,2]
[313925076,1707828639433,-5723.64799478,0.00035258,4]
[313925077,1707828639442,-212.85749,0.0003526,2]
[313925078,1707828639452,-301.7284444,0.00035261,4]
[313925079,1707828639461,-181853.97373136,0.0003531,30]
[313925080,1707828639474,-9440.81087819,0.0003531,30]
[313925087,1707828641611,-197.54412698,0.000318,2]
[313925088,1707828641620,-647.59317772,0.00031898,4]
[313925089,1707828641630,-13245.35761243,0.0003531,30]
[313925090,1707828641641,-13093.23883558,0.0003531,30]
[313925091,1707828641653,-414.74126486,0.0003531,30]
[313925092,1707828641664,-3172.83866297,0.0003531,30]
[313925093,1707828641676,-729.75,0.0003531,30]
[313925094,1707828641690,-7521.29999994,0.0003531,30]
[313925095,1707828641702,-5446.80634017,0.0003531,30]
[313925107,1707828643453,-197.54412698,0.000329,2]
[313925108,1707828643541,-4517.45587301,0.0003531,30]
[313925141,1707828646651,-3.28125971,0.0003531,30]
[313925142,1707828646663,-19500.60541283,0.0003531,30]
[313925157,1707829519275,-454.78953434,0.00023307,2]
[313925158,1707829519297,-199.94018666,0.00023308,2]
[313925159,1707829519318,-5282.95746006,0.00023308,2]
[313925160,1707829519338,-280.94108593,0.00023308,2]
[313925161,1707829519362,-1019.25952196,0.00023309,2]
[313925162,1707829519383,-250.0,0.00023314,2]
[313925163,1707829519440,-164.22477025,0.00023415,2]
[313925164,1707829519464,-6868.71035467,0.00023517,2]
[313925165,1707829519484,-14129.17708613,0.00026912,2]
[313925166,1707829594322,-273.45700158,0.00023516,2]
[313925167,1707829594346,-647.99154289,0.00023517,2]
[313925168,1707829594367,-300.0,0.00026912,2]
[313925169,1707829594393,-766.53439085,0.00026912,2]
[313925170,1707829594415,-10770.82291387,0.00026912,2]
[313925171,1707829594436,-169.30228,0.00028506,2]
[313925172,1707829594456,-168.2364761,0.00029162,2]
[313925173,1707829594476,-156.92946073,0.00029163,2]
[313925174,1707829594496,-2114.83713647,0.00029163,7]
[313925175,1707829594516,-3000.0,0.00029325,2]
[313925176,1707829594538,-183.647519,0.00029525,2]
[313925177,1707829594559,-200.0,0.00029603,15]
[313925178,1707829594679,-11189.82121842,0.00031,2]
[313925179,1707829594702,-164.22477025,0.00031953,2]
[313925180,1707829594723,-200.88017748,0.00031953,2]
[313925181,1707829594744,-1730.97,0.0003199,3]
[313925182,1707829594765,-3300.85,0.0003199,3]
[313925183,1707829594785,-2750.7,0.0003199,3]
[313925184,1707829594805,-2292.25,0.0003199,3]
[313925185,1707829594826,-117052.54511236,0.00032,15]
[313925186,1707829626118,-739.336956,0.00026912,2]
[313925187,1707829626140,-300.0,0.00026912,2]
[313925188,1707829626162,-10039.25499621,0.00032,15]
[313925189,1707829627088,-2569.41233468,0.00032,15]
[313925237,1707829832517,-1028.78827764,0.00032,15]
[313925240,1707829832538,-15358.63768344,0.00032,15]
[313925243,1707829832551,-154.86062544,0.00032053,5]
[313925245,1707829832562,-1115.58268575,0.00032053,2]
[313925247,1707829832573,-200.88017747,0.0003318,2]
[313925249,1707829832585,-1064.25403534,0.0003321,2]
[313925252,1707829832596,-250.0,0.00033258,5]
[313925254,1707829832606,-1007.4,0.00033266,3]
[313925256,1707829832617,-130991.6439,0.0003329,7]
[313925258,1707829832629,-500.0,0.00033806,5]
[313925260,1707829832641,-750.0,0.00034354,5]
[313925262,1707829832652,-156.5002996,0.00034849,2]
[313925265,1707829832663,-153.0,0.00034849,2]
[313925267,1707829832673,-153.0,0.00034849,2]
[313925269,1707829832683,-1000.0,0.00034902,5]
[313925271,1707829832694,-400.0,0.00034907,2]
[313925273,1707829832706,-1533.16044773,0.00035,4]
[313925276,1707829832717,-500.13137461,0.00035,7]
[313925278,1707829832729,-3933.83541145,0.00035,2]
[313925280,1707829832739,-10188.56654547,0.00035,2]
[313925282,1707829832750,-847.02589561,0.00035,2]
[313925284,1707829832759,-154.86062544,0.00035,6]
[313925286,1707829832772,-159.52100936,0.00035066,7]
[313925287,1707829832784,-5106.02846642,0.00035122,2]
[313925288,1707829832794,-306.0,0.00035123,2]
[313925289,1707829832805,-451.5360075,0.00035123,2]
[313925290,1707829832818,-306.0,0.00035123,2]
[313925291,1707829832828,-307.6104457,0.00035123,2]
[313925292,1707829832839,-335.0478613,0.00035123,2]
[313925293,1707829832849,-306.0,0.00035123,2]
[313925294,1707829832860,-153.0,0.00035123,2]
[313925295,1707829832872,-306.0,0.00035123,2]
[313925296,1707829832884,-200.079134,0.00035123,2]
[313925297,1707829832895,-153.0,0.00035123,2]
[313925298,1707829832906,-153.0,0.00035123,2]
[313925299,1707829832916,-153.0,0.00035123,2]
[313925300,1707829832928,-306.0,0.00035123,2]
[313925301,1707829832940,-200.1465056,0.00035123,2]
[313925302,1707829832951,-153.0,0.00035123,2]
[313925303,1707829832965,-153.0,0.00035123,2]
[313925304,1707829832976,-153.0,0.00035123,2]
[313925305,1707829832988,-200.1465056,0.00035123,2]
[313925306,1707829832999,-153.0,0.00035123,2]
[313925307,1707829833009,-153.0,0.00035123,2]
[313925308,1707829833019,-200.1465056,0.00035123,2]
[313925309,1707829833029,-153.0,0.00035123,2]
[313925310,1707829833039,-153.0,0.00035123,2]
[313925311,1707829833051,-153.0,0.00035123,2]
[313925312,1707829833063,-153.0,0.00035123,2]
[313925313,1707829833074,-200.1465056,0.00035123,2]
[313925314,1707829833085,-153.0,0.00035123,2]
[313925315,1707829833095,-200.1465056,0.00035123,2]
[313925316,1707829833105,-153.0,0.00035123,2]
[313925317,1707829833117,-153.0,0.00035123,2]
[313925318,1707829833128,-153.0,0.00035123,2]
[313925319,1707829833140,-153.0,0.00035123,2]
[313925320,1707829833151,-200.1465056,0.00035123,2]
[313925321,1707829833162,-153.0,0.00035123,2]
[313925322,1707829833172,-153.0,0.00035123,2]
[313925323,1707829833182,-153.0,0.00035123,2]
[313925324,1707829833192,-200.1465056,0.00035123,2]
[313925325,1707829833202,-153.0,0.00035123,2]
[313925326,1707829833213,-153.0,0.00035123,2]
[313925327,1707829833223,-153.0,0.00035123,2]
[313925328,1707829833233,-153.0,0.00035123,2]
[313925329,1707829833244,-200.1465056,0.00035123,2]
[313925330,1707829833254,-153.0,0.00035123,2]
[313925331,1707829833264,-153.0,0.00035123,2]
[313925332,1707829833275,-200.1465056,0.00035123,2]
[313925333,1707829833285,-153.0,0.00035123,2]
[313925334,1707829833296,-153.0,0.00035123,2]
[313925335,1707829833306,-153.0,0.00035123,2]
[313925336,1707829833316,-200.1465056,0.00035123,2]
[313925337,1707829833327,-153.0,0.00035123,2]
[313925338,1707829833338,-153.0,0.00035123,2]
[313925339,1707829833348,-399.484552,0.00035123,2]
[313925340,1707829833360,-153.0,0.00035123,2]
[313925341,1707829833370,-153.0,0.00035123,2]
[313925342,1707829833381,-153.0,0.00035123,2]
[313925343,1707829833391,-153.0,0.00035123,2]
[313925344,1707829833401,-153.0,0.00035123,2]
[313925345,1707829833411,-153.0,0.00035123,2]
[313925346,1707829833422,-250.0,0.00035199,15]
[313925347,1707829833432,-4476.2941815,0.00035258,4]
[313925399,1707829838666,-556.46680651,0.00035258,4]
[313925401,1707829838679,-886.48877411,0.00035258,4]
[313925403,1707829838688,-153.34627261,0.00035258,7]
[313925405,1707829838697,-500.0,0.00035275,15]
[313925407,1707829838707,-500.0,0.00035275,15]
[313925409,1707829838716,-500.0,0.00035275,15]
[313925411,1707829838725,-500.0,0.00035275,15]
[313925413,1707829838735,-368.19610564,0.00035275,15]
[313925415,1707829838744,-451.64096867,0.00035275,15]
[313925417,1707829838753,-30714.7778,0.0003529,30]
[313925419,1707829838762,-1276.2070171,0.00035299,2]
[313925421,1707829838772,-1000.0,0.00035387,2]
[313925423,1707829838780,-1000.0,0.00035412,2]
[313925425,1707829838789,-350.10341616,0.00035422,2]
[313925427,1707829838798,-1000.0,0.00035447,2]
[313925429,1707829838808,-1250.0,0.0003545,5]
[313925430,1707829838817,-160.1663701,0.00035452,2]
[313925432,1707829838827,-621.9297115,0.00035454,2]
[313925434,1707829838837,-8000.0,0.00035455,14]
[313925436,1707829838846,-1000.0,0.00035463,2]
[313925438,1707829838855,-1000.0,0.00035473,2]
[313925440,1707829838865,-1000.0,0.00035496,2]
[313925442,1707829838874,-1742.31,0.00035506,3]
[313925444,1707829838883,-6528.96876002,0.00035516,3]
[313925446,1707829838895,-19290.14900299,0.00035516,3]
[313925448,1707829838905,-1000.0,0.00035525,2]
[313925450,1707829838914,-500.0,0.000356,2]
[313925452,1707829838924,-500.0,0.000356,2]
[313925454,1707829838933,-916.082,0.000356,2]
[313925456,1707829838942,-2000.0,0.000356,24]
[313925458,1707829838951,-2000.0,0.000356,2]
[313925460,1707829838961,-2000.0,0.0003561,24]
[313925462,1707829838973,-210.61200602,0.00035614,4]
[313925464,1707829838983,-169.40410328,0.00035614,2]
[313925466,1707829838992,-252.27198642,0.00035614,4]
[313925468,1707829839001,-500.0,0.00035614,4]
[313925470,1707829839011,-2050.39168918,0.00035614,4]
[313925472,1707829839020,-259.44573227,0.00035614,4]
[313925474,1707829839029,-212.18771165,0.00035614,4]
[313925476,1707829839038,-927.85609052,0.00035614,4]
[313925478,1707829839049,-4862.01666207,0.00035614,2]
[313925479,1707829839058,-287.13818668,0.00035614,4]
[313925481,1707829839067,-1367.09768105,0.00035614,4]
[313925483,1707829839076,-293.62841318,0.00035614,4]
[313925485,1707829839085,-273.34919548,0.00035614,4]
[313925487,1707829839096,-499.67343307,0.00035614,4]
[313925488,1707829839105,-154.90705577,0.00035614,4]
[313925489,1707829839115,-1434.86449475,0.00035615,4]
[313925490,1707829839124,-340.896014,0.00035615,15]
[313925491,1707829839134,-306.42385041,0.00035615,15]
[313925492,1707829839143,-500.0,0.00035616,7]
[313925493,1707829839153,-500.0,0.00035616,14]
[313925494,1707829839163,-500.0,0.00035616,14]
[313925495,1707829839172,-500.0,0.00035616,14]
[313925496,1707829839181,-500.0,0.00035616,14]
[313925497,1707829839190,-500.0,0.00035616,14]
[313925498,1707829839200,-500.0,0.00035616,14]
[313925499,1707829839209,-500.0,0.00035616,14]
[313925500,1707829839218,-500.0,0.00035616,14]
[313925501,1707829839227,-500.0,0.00035616,14]
[313925502,1707829839236,-500.0,0.00035616,14]
[313925503,1707829839245,-500.0,0.00035616,14]
[313925504,1707829839255,-500.0,0.00035616,14]
[313925505,1707829839264,-576.08204865,0.00035616,14]
[313925506,1707829839274,-500.0,0.00035616,14]
[313925507,1707829839283,-308.61183286,0.00035616,14]
[313925508,1707829839292,-461.69581788,0.00035616,14]
[313925509,1707829839302,-500.0,0.00035616,14]
[313925510,1707829839311,-500.0,0.00035616,14]
[313925511,1707829839321,-500.0,0.00035616,14]
[313925512,1707829839330,-500.0,0.00035616,14]
[313925514,1707829839339,-500.0,0.00035616,2]
[313925516,1707829839348,-500.0,0.00035616,2]
[313925517,1707829839357,-500.0,0.00035616,2]
[313925519,1707829839366,-500.0,0.00035616,2]
[313925521,1707829839377,-500.0,0.00035616,2]
[313925523,1707829839386,-500.0,0.00035616,2]
[313925525,1707829839395,-500.0,0.00035616,2]
[313925527,1707829839404,-500.0,0.00035616,2]
[313925529,1707829839412,-500.0,0.00035616,14]
[313925531,1707829839421,-500.0,0.00035616,14]
[313925533,1707829839430,-500.0,0.00035616,14]
[313925535,1707829839440,-500.0,0.00035616,14]
[313925537,1707829839450,-500.0,0.00035616,14]
[313925539,1707829839459,-500.0,0.00035616,14]
[313925541,1707829839468,-500.0,0.00035616,14]
[313925543,1707829839478,-500.0,0.00035616,14]
[313925545,1707829839487,-500.0,0.00035616,14]
[313925547,1707829839496,-500.0,0.00035616,14]
[313925549,1707829839505,-500.0,0.00035616,14]
[313925551,1707829839515,-500.0,0.00035616,14]
[313925553,1707829839524,-500.0,0.00035616,14]
[313925555,1707829839534,-175.95,0.00035616,14]
[313925557,1707829839542,-582.57710656,0.00035616,14]
[313925559,1707829839551,-500.0,0.00035616,14]
[313925561,1707829839561,-635.31819032,0.00035616,14]
[313925563,1707829839570,-500.0,0.00035616,14]
[313925565,1707829839579,-500.0,0.00035616,14]
[313925567,1707829839589,-500.0,0.00035616,14]
[313925569,1707829839598,-500.0,0.00035616,14]
[313925571,1707829839607,-500.0,0.00035616,14]
[313925573,1707829839616,-500.0,0.00035616,14]
[313925575,1707829839625,-500.0,0.00035616,14]
[313925577,1707829839636,-500.0,0.00035616,14]
[313925579,1707829839645,-500.0,0.00035616,14]
[313925581,1707829839654,-500.0,0.00035616,14]
[313925583,1707829839663,-158.10243612,0.00035616,14]
[313925585,1707829839672,-500.0,0.00035616,14]
[313925587,1707829839682,-500.0,0.00035616,14]
[313925589,1707829839691,-500.0,0.00035616,14]
[313925591,1707829839700,-500.0,0.00035616,14]
[313925592,1707829839710,-531.10116557,0.00035616,14]
[313925594,1707829839719,-631.18458791,0.00035616,14]
[313925596,1707829839729,-500.0,0.00035616,14]
[313925599,1707829839738,-500.0,0.00035616,14]
[313925600,1707829839748,-500.0,0.00035616,14]
[313925602,1707829839758,-500.0,0.00035616,14]
[313925604,1707829839767,-500.0,0.00035616,14]
[313925606,1707829839777,-461.31217345,0.00035616,14]
[313925608,1707829839787,-500.0,0.00035616,14]
[313925610,1707829839796,-500.0,0.00035616,14]
[313925612,1707829839805,-500.0,0.00035616,2]
[313925614,1707829839815,-500.0,0.00035616,14]
[313925616,1707829839824,-500.0,0.00035616,2]
[313925618,1707829839837,-500.0,0.00035616,14]
[313925621,1707829839846,-500.0,0.00035616,2]
[313925623,1707829839855,-500.0,0.00035616,14]
[313925624,1707829839864,-500.0,0.00035616,2]
[313925626,1707829839874,-633.09615801,0.00035616,14]
[313925628,1707829839884,-500.0,0.00035616,2]
[313925630,1707829839893,-500.0,0.00035616,2]
[313925632,1707829839902,-500.0,0.00035616,2]
[313925634,1707829839911,-500.0,0.00035616,2]
[313925636,1707829839920,-370.86420449,0.00035616,14]
[313925639,1707829839929,-500.0,0.00035616,14]
[313925641,1707829839938,-500.0,0.00035616,14]
[313925643,1707829839947,-500.0,0.00035616,14]
[313925645,1707829839956,-500.0,0.00035616,14]
[313925647,1707829839965,-500.0,0.00035616,14]
[313925649,1707829839978,-564.69782843,0.00035616,14]
[313925651,1707829839987,-500.0,0.00035616,14]
[313925653,1707829839996,-500.0,0.00035616,14]
[313925655,1707829840005,-500.0,0.00035616,14]
[313925657,1707829840014,-500.0,0.00035616,14]
[313925659,1707829840023,-459.94857577,0.00035616,14]
[313925661,1707829840033,-500.0,0.00035616,14]
[313925663,1707829840042,-500.0,0.00035616,14]
[313925665,1707829840051,-500.0,0.00035616,14]
[313925667,1707829840061,-500.0,0.00035616,14]
[313925669,1707829840071,-500.0,0.00035616,14]
[313925671,1707829840080,-500.0,0.00035616,14]
[313925673,1707829840090,-500.0,0.00035616,14]
[313925675,1707829840099,-500.0,0.00035616,14]
[313925677,1707829840109,-500.0,0.00035616,14]
[313925679,1707829840118,-500.0,0.00035616,14]
[313925681,1707829840129,-500.0,0.00035616,14]
[313925683,1707829840138,-500.0,0.00035616,14]
[313925685,1707829840148,-500.0,0.00035616,14]
[313925687,1707829840157,-340.24,0.00035616,14]
[313925689,1707829840166,-500.0,0.00035616,14]
[313925691,1707829840176,-500.0,0.00035616,14]
[313925693,1707829840185,-500.0,0.00035616,14]
[313925695,1707829840194,-500.0,0.00035616,14]
[313925697,1707829840202,-500.0,0.00035616,14]
[313925699,1707829840212,-500.0,0.00035616,14]
[313925701,1707829840221,-500.0,0.00035616,14]
[313925703,1707829840230,-500.0,0.00035616,14]
[313925705,1707829840239,-578.86,0.00035616,14]
[313925707,1707829840247,-500.0,0.00035616,14]
[313925709,1707829840257,-245.48151958,0.00035616,14]
[313925882,1707829841805,-155.3303799,0.00035615,15]
[313925884,1707829841815,-254.51848042,0.00035616,14]
[313925886,1707829841825,-500.0,0.00035616,14]
[313925888,1707829841836,-500.0,0.00035616,14]
[313925890,1707829841846,-500.0,0.00035616,14]
[313925892,1707829841855,-500.0,0.00035616,14]
[313925895,1707829841865,-500.0,0.00035616,14]
[313925898,1707829841874,-500.0,0.00035616,14]
[313925900,1707829841884,-500.0,0.00035616,14]
[313925912,1707829841974,-500.0,0.00035616,14]
[313925914,1707829841984,-500.0,0.00035616,14]